bitfinex-derivatives/quotes_BTCF0:USTF0_20250424
["timestamp","ask_amount","ask_price","bid_price","bid_amount"]
[1745490696713,0.1422308,92555.0,92554.0,0.350232]
[1745490697101,0.0342,92555.0,92554.0,0.350232]
[1745490698116,0.1422308,92555.0,92554.0,0.350232]
[1745490698813,0.0342,92555.0,92554.0,0.350232]
[1745490699214,0.1422308,92555.0,92554.0,0.350232]
[1745490700114,0.0342,92555.0,92554.0,0.350232]
[1745490700802,0.1422308,92555.0,92554.0,0.350232]
[1745490701007,0.0342,92555.0,92554.0,0.350232]
[1745490702207,0.001,92555.0,92554.0,0.350232]
[1745490708332,0.0343,92555.0,92554.0,0.350232]
[1745490712727,0.1423308,92555.0,92554.0,0.288032]
[1745490713024,0.1423308,92555.0,92554.0,0.18]
[1745490713226,0.1423308,92555.0,92554.0,0.008]
[1745490713412,0.1423308,92555.0,92554.0,0.116032]
[1745490714012,0.1423308,92555.0,92554.0,0.008]
[1745490714211,0.1423308,92555.0,92554.0,0.116032]
[1745490716528,0.1734308,92555.0,92554.0,0.116032]
[1745490717920,0.1734308,92555.0,92554.0,0.008]
[1745490718632,0.1080355,92551.0,92550.0,0.0016207]
[1745490718920,0.1757155,92551.0,92550.0,0.0016207]
[1745490719124,0.1080402,92547.0,92535.0,0.00540333]
[1745490719425,0.108053,92536.0,92535.0,0.00540333]
[1745490719621,0.108053,92536.0,92535.0,0.11345753]
[1745490719821,0.108053,92536.0,92535.0,0.00540333]
[1745490720022,0.108053,92536.0,92535.0,0.11345753]
[1745490720326,0.169853,92536.0,92535.0,0.11345753]
[1745490721614,0.169853,92536.0,92535.0,0.11445753]
[1745490721923,0.170853,92536.0,92535.0,0.11445753]
[1745490722314,0.170853,92536.0,92535.0,0.11345753]
[1745490722519,0.170853,92536.0,92535.0,0.11445753]
[1745490724016,0.170853,92536.0,92535.0,0.11345753]
[1745490724419,0.169853,92536.0,92535.0,0.11345753]
[1745490724612,0.170853,92536.0,92535.0,0.11345753]
[1745490727121,0.0628,92536.0,92535.0,0.11345753]
[1745490728130,0.0628,92536.0,92535.0,0.28545753]
[1745490728724,0.0618,92536.0,92535.0,0.28545753]
[1745490728929,0.0628,92536.0,92535.0,0.28545753]
[1745490730030,0.170853,92536.0,92535.0,0.28545753]
[1745490732327,0.169853,92536.0,92535.0,0.28545753]
[1745490732527,0.170853,92536.0,92535.0,0.28545753]
[1745490733132,0.170853,92536.0,92535.0,0.11345753]
[1745490733841,0.170853,92536.0,92535.0,0.47425753]
[1745490735739,0.531653,92536.0,92535.0,0.00540333]
[1745490737319,0.531653,92536.0,92535.0,0.11345753]
[1745490737921,0.530653,92536.0,92535.0,0.11345753]
[1745490738123,0.531653,92536.0,92535.0,0.11345753]
[1745490738537,0.530653,92536.0,92535.0,0.11345753]
[1745490738729,0.531653,92536.0,92535.0,0.11345753]
[1745490739125,0.530653,92536.0,92535.0,0.11345753]
[1745490739330,0.531653,92536.0,92535.0,0.11345753]
[1745490739551,0.532653,92536.0,92535.0,0.11345753]
[1745490740937,0.531653,92536.0,92535.0,0.11345753]
[1745490741133,0.532653,92536.0,92535.0,0.11345753]
[1745490741830,0.532653,92536.0,92535.0,0.00540333]
[1745490742135,0.1080682,92523.0,92522.0,0.1187333]
[1745490742329,0.1080682,92523.0,92522.0,0.1514333]
[1745490742734,0.1080682,92523.0,92522.0,0.0974]
[1745490742936,0.1080682,92523.0,92522.0,0.1407694]
[1745490743437,0.1080682,92523.0,92522.0,0.1080694]
[1745490743639,0.1080752,92517.0,92516.0,0.10915689]
[1745490744842,0.1080752,92517.0,92516.0,0.00108089]
[1745490745029,0.1080752,92517.0,92516.0,0.11215729]
[1745490745230,0.1382752,92517.0,92516.0,0.11215729]
[1745490745734,0.1392752,92517.0,92516.0,0.11615729]
[1745490746333,0.1392752,92517.0,92516.0,0.00808089]
[1745490746537,0.1392752,92517.0,92516.0,0.11615729]
[1745490746733,0.1392752,92517.0,92516.0,0.14785729]
[1745490748141,0.1090752,92517.0,92516.0,0.14785729]
[1745490748530,0.1409752,92517.0,92516.0,0.14785729]
[1745490749136,0.1409752,92517.0,92516.0,0.31985729]
[1745490749944,0.001,92517.0,92516.0,0.31985729]
[1745490756535,0.001,92517.0,92516.0,0.35305729]
[1745490760038,0.001,92517.0,92516.0,0.71385729]
[1745490764250,0.001,92517.0,92516.0,0.35305729]
[1745490764543,0.001,92517.0,92516.0,0.71385729]
[1745490764745,0.00080596,92517.0,92516.0,0.71385729]
[1745490768745,0.03140596,92517.0,92516.0,0.71385729]
[1745490769153,0.03140596,92517.0,92516.0,0.35305729]
[1745490769354,0.03140596,92517.0,92516.0,0.71385729]
[1745490770650,0.06350596,92517.0,92516.0,0.71385729]
[1745490771952,0.06350596,92517.0,92516.0,0.68065729]
[1745490772247,0.09530596,92517.0,92516.0,0.68065729]
[1745490772654,0.06350596,92517.0,92516.0,0.68065729]
[1745490772962,0.06350596,92517.0,92516.0,0.71125729]
[1745490778347,0.06350596,92517.0,92516.0,0.68065729]
[1745490782960,0.06350596,92517.0,92516.0,0.71365729]
[1745490784049,0.06350596,92517.0,92516.0,0.54165729]
[1745490787960,0.06350596,92517.0,92516.0,0.18085729]
[1745490788160,0.06350596,92517.0,92516.0,0.54165729]
[1745490791266,0.06350596,92517.0,92516.0,0.50865729]
[1745490792153,0.06350596,92517.0,92516.0,0.68065729]
[1745490794262,0.06350596,92517.0,92516.0,0.50865729]
[1745490795654,0.06350596,92517.0,92516.0,0.53905729]
[1745490797867,0.10999878,92519.0,92518.0,0.1080741]
[1745490798259,0.10999878,92519.0,92518.0,0.3451741]
[1745490799366,0.11099878,92519.0,92518.0,0.3521741]
[1745490800671,0.11099878,92519.0,92518.0,1.0737741]
[1745490802975,0.001,92519.0,92518.0,1.0737741]
[1745490804572,0.001,92519.0,92518.0,0.7129741]
[1745490804865,0.0333,92519.0,92518.0,0.7129741]
[1745490810075,0.06692,92545.0,92530.0,0.10806]
[1745490810277,0.032,92533.0,92530.0,0.46886]
[1745490810667,0.0311,92532.0,92530.0,0.46886]
[1745490811071,0.17529878,92531.0,92530.0,0.46886]
[1745490811268,0.17529878,92531.0,92530.0,0.46986]
[1745490811776,0.17629878,92531.0,92530.0,0.46986]
[1745490812179,0.0663,92531.0,92530.0,0.46986]
[1745490813363,0.001,92531.0,92530.0,0.46986]
[1745490813579,0.1376354,92540.0,92539.0,0.1080495]
[1745490814362,0.1376354,92540.0,92539.0,0.11878057]
[1745490814588,0.0894222,92540.0,92539.0,0.11878057]
[1745490814772,0.0914222,92540.0,92539.0,0.18478057]
[1745490814978,0.0934222,92540.0,92539.0,0.18478057]
[1745490815179,0.0934222,92540.0,92539.0,0.35678057]
[1745490815475,0.0914222,92540.0,92539.0,0.35678057]
[1745490815680,0.0635,92550.0,92549.0,0.1080379]
[1745490815878,0.0315,92550.0,92549.0,0.4688379]
[1745490816074,0.0315,92550.0,92549.0,0.6408379]
[1745490816679,0.0635,92550.0,92549.0,0.7385379]
[1745490817177,0.0635,92550.0,92549.0,0.5665379]
[1745490818183,0.0645,92550.0,92549.0,0.5665379]
[1745490818873,0.0655,92550.0,92549.0,0.5665379]
[1745490819585,0.0645,92550.0,92549.0,0.5665379]
[1745490819781,0.0635,92550.0,92549.0,0.5665379]
[1745490820277,0.19644361,92560.0,92559.0,0.1080262]
[1745490820492,0.19644361,92560.0,92559.0,0.4688262]
[1745490821486,0.19844361,92560.0,92559.0,0.4688262]
[1745490821690,0.0336,92560.0,92559.0,0.4688262]
[1745490825769,0.141625,92560.0,92559.0,0.4688262]
[1745490825970,0.141625,92560.0,92559.0,0.3608]
[1745490826389,0.205925,92560.0,92559.0,0.3608]
[1745490826683,0.313965,92560.0,92559.0,0.3608]
[1745490826976,0.312965,92560.0,92559.0,0.4688262]
[1745490827175,0.313965,92560.0,92559.0,0.3608]
[1745490827376,0.312965,92560.0,92559.0,0.4688262]
[1745490827579,0.313965,92560.0,92559.0,0.4688262]
[1745490828278,0.312965,92560.0,92559.0,0.4688262]
[1745490828484,0.313965,92560.0,92559.0,0.4688262]
[1745490829486,0.1080285,92557.0,92556.0,0.1080293]
[1745490829977,0.2160725,92557.0,92556.0,0.1080293]
[1745490830884,0.2180725,92557.0,92556.0,0.1080293]
[1745490831095,0.1120285,92557.0,92556.0,0.1080293]
[1745490831386,0.1100285,92557.0,92556.0,0.1080293]
[1745490832086,0.1120285,92557.0,92556.0,0.1080293]
[1745490834188,0.1080308,92555.0,92554.0,0.0540156]
[1745490835401,0.1744308,92555.0,92554.0,0.0540156]
[1745490837990,0.1744308,92555.0,92554.0,0.0861156]
[1745490838191,0.1724308,92555.0,92554.0,0.0861156]
[1745490838377,0.1744308,92555.0,92554.0,0.0861156]
[1745490838688,0.1744308,92555.0,92554.0,0.0540156]
[1745490840894,0.1724308,92555.0,92554.0,0.0540156]
[1745490841186,0.1744308,92555.0,92554.0,0.0540156]
[1745490841486,0.1724308,92555.0,92554.0,0.0540156]
[1745490841677,0.1744308,92555.0,92554.0,0.0540156]
[1745490843403,0.1744308,92555.0,92554.0,0.0868156]
[1745490843590,0.1724308,92555.0,92554.0,0.0868156]
[1745490843895,0.1744308,92555.0,92554.0,0.0540156]
[1745490844388,0.1744308,92555.0,92554.0,0.0853156]
[1745490845286,0.1744308,92555.0,92554.0,0.0540156]
[1745490846090,0.162051,92553.0,92552.0,0.1080335]
[1745490846285,0.162051,92553.0,92552.0,0.1393335]
[1745490846484,0.0540213,92546.0,92535.0,0.054027]
[1745490846687,0.1940637,92545.0,92544.0,0.0313]
[1745490846895,0.1080472,92541.0,92540.0,0.1080481]
[1745490847775,0.1702472,92541.0,92539.0,0.0312]
[1745490847992,0.1080484,92540.0,92539.0,0.1392495]
[1745490848286,0.1080484,92540.0,92539.0,0.0312]
[1745490848487,0.1702484,92540.0,92539.0,0.1392495]
[1745490850092,0.1712484,92540.0,92539.0,0.1392495]
[1745490850298,0.1722484,92540.0,92539.0,0.1392495]
[1745490850791,0.1712484,92540.0,92539.0,0.1392495]
[1745490850986,0.1722484,92540.0,92539.0,0.1392495]
[1745490851388,0.1100484,92540.0,92539.0,0.1392495]
[1745490852291,0.1419484,92540.0,92539.0,0.0312]
[1745490853393,0.1409484,92540.0,92539.0,0.0312]
[1745490853696,0.1419484,92540.0,92539.0,0.0312]
[1745490854283,0.5027484,92540.0,92539.0,0.0312]
[1745490855106,0.0540296,92531.0,92527.0,0.10968437]
[1745490855402,0.1080624,92528.0,92527.0,0.14118437]
[1745490856293,0.1080624,92528.0,92527.0,0.00162107]
[1745490856480,0.1080624,92528.0,92527.0,0.00362107]
[1745490856883,0.1382624,92528.0,92527.0,0.00362107]
[1745490857087,0.1382624,92528.0,92527.0,0.00162107]
[1745490857385,0.1382624,92528.0,92527.0,0.00362107]
[1745490857584,0.1382624,92528.0,92527.0,0.00662107]
[1745490857791,0.1382624,92528.0,92527.0,0.00562107]
[1745490858700,0.1382624,92528.0,92527.0,0.11368457]
[1745490858894,0.1382624,92528.0,92527.0,0.11268457]
[1745490865089,0.1382624,92528.0,92527.0,0.00462107]
[1745490865987,0.1382624,92528.0,92527.0,0.11268457]
[1745490867493,0.1382624,92528.0,92527.0,0.00462107]
[1745490867899,0.1382624,92528.0,92527.0,0.11268457]
[1745490870101,0.1382624,92528.0,92527.0,0.00462107]
[1745490870294,0.1706624,92528.0,92527.0,0.00462107]
[1745490870999,0.1706624,92528.0,92527.0,0.03472107]
[1745490873003,0.1706624,92528.0,92527.0,0.14278457]
[1745490873902,0.1706624,92528.0,92527.0,0.03472107]
[1745490875195,0.1706624,92528.0,92527.0,0.14278457]
[1745490876802,0.1706624,92528.0,92527.0,0.03472107]
[1745490877589,0.1080694,92522.0,92521.0,0.1395705]
[1745490877994,0.1681694,92522.0,92521.0,0.1395705]
[1745490879003,0.1691694,92522.0,92521.0,0.0375]
[1745490880000,0.1681694,92522.0,92521.0,0.0355]
[1745490880399,0.1681694,92522.0,92521.0,0.0325]
[1745490880603,0.1681694,92522.0,92521.0,0.0335]
[1745490886107,0.3057288,92522.0,92521.0,0.0335]
[1745490888813,0.2516941,92522.0,92519.0,0.0328]
[1745490889016,0.1080717,92520.0,92519.0,0.0328]
[1745490889216,0.1080717,92520.0,92519.0,0.1408728]
[1745490889413,0.1699717,92520.0,92519.0,0.1408728]
[1745490889816,0.1699717,92520.0,92519.0,0.1418728]
[1745490890112,0.1699717,92520.0,92519.0,0.1438728]
[1745490891612,0.1699717,92520.0,92519.0,0.0358]
[1745490894710,0.1699717,92520.0,92519.0,0.0679]
[1745490895318,0.1699717,92520.0,92519.0,0.1759729]
[1745490896017,0.1699717,92520.0,92519.0,0.0679]
[1745490898917,0.1699717,92520.0,92519.0,0.1759729]
[1745490901920,0.21464611,92520.0,92519.0,0.1759729]
[1745490906126,0.1699717,92520.0,92519.0,0.1759729]
[1745490912624,0.1396717,92520.0,92519.0,0.1759729]
[1745490912827,0.13779534,92525.0,92522.0,0.0540341]
[1745490913127,0.13779534,92525.0,92524.0,0.108067]
[1745490913520,0.13779534,92525.0,92524.0,0.170867]
[1745490914317,0.13779534,92525.0,92524.0,0.342867]
[1745490914528,0.24586124,92525.0,92524.0,0.342867]
[1745490914723,0.24686124,92525.0,92524.0,0.342867]
[1745490915224,0.24686124,92525.0,92524.0,0.138467]
[1745490915442,0.13879534,92525.0,92524.0,0.138467]
[1745490915820,0.13879534,92525.0,92524.0,0.246547]
[1745490916224,0.001,92525.0,92524.0,0.418547]
[1745490916433,0.13779534,92531.0,92530.0,0.10806]
[1745490916623,0.13779534,92531.0,92530.0,0.46886]
[1745490917331,0.13779534,92531.0,92530.0,0.70246]
[1745490918033,0.13879534,92531.0,92530.0,0.70246]
[1745490918435,0.13979534,92531.0,92530.0,0.70246]
[1745490919035,0.13879534,92531.0,92530.0,0.70246]
[1745490919335,0.13879534,92531.0,92530.0,0.70346]
[1745490920038,0.13779534,92531.0,92530.0,0.70346]
[1745490920228,0.13779534,92531.0,92530.0,0.70446]
[1745490920940,0.13779534,92531.0,92530.0,0.70546]
[1745490921327,0.1080557,92534.0,92533.0,0.1080565]
[1745490922528,0.1080557,92534.0,92533.0,0.1090565]
[1745490924038,0.1080557,92534.0,92533.0,0.1100565]
[1745490924633,0.1080557,92534.0,92533.0,0.1090565]
[1745490924831,0.1080557,92534.0,92533.0,0.1100565]
[1745490927238,0.1391557,92534.0,92533.0,0.1100565]
[1745490927933,0.0311,92534.0,92533.0,0.1100565]
[1745490928141,0.0311,92534.0,92533.0,0.1731565]
[1745490932826,0.0619,92534.0,92533.0,0.1731565]
[1745490933029,0.1699554,92534.0,92533.0,0.1731565]
[1745490933461,0.1699554,92534.0,92533.0,0.1420565]
[1745490933946,0.1699554,92534.0,92533.0,0.1100565]
[1745490934638,0.1699554,92534.0,92533.0,0.002]
[1745490937644,0.1709554,92534.0,92533.0,0.001]
[1745490937833,0.1080612,92529.0,92528.0,0.108062]
[1745490938033,0.1746212,92529.0,92528.0,0.108062]
[1745490938843,0.2352212,92529.0,92528.0,0.108062]
[1745490939941,0.2362212,92529.0,92528.0,0.108062]
[1745490940341,0.37393654,92529.0,92528.0,0.108062]
[1745490941047,0.1080635,92527.0,92526.0,0.1620958]
[1745490941243,0.108067,92525.0,92524.0,0.1080661]
[1745490941638,0.173567,92525.0,92524.0,0.1080661]
[1745490942435,0.173567,92525.0,92524.0,0.1090661]
[1745490944545,0.173567,92525.0,92524.0,0.1100661]
[1745490948648,0.173567,92525.0,92524.0,0.002]
[1745490949842,0.173567,92525.0,92524.0,0.110067]
[1745490953759,0.173567,92525.0,92524.0,0.002]
[1745490953956,0.1080717,92520.0,92519.0,0.00027]
[1745490954257,0.1080752,92517.0,92516.0,0.00108089]
[1745490954649,0.1080752,92517.0,92516.0,0.10915729]
[1745490955264,0.1705752,92517.0,92516.0,0.10915729]
[1745490955859,0.1705752,92517.0,92516.0,0.11215729]
[1745490956967,0.1715752,92517.0,92516.0,0.11515729]
[1745490958959,0.1715752,92517.0,92516.0,0.00708089]
[1745490960359,0.1715752,92517.0,92516.0,0.36788089]
[1745490961055,0.1413752,92517.0,92516.0,0.36788089]
[1745490961467,0.1413752,92517.0,92516.0,0.47595729]
[1745490961655,0.1413752,92517.0,92516.0,0.36788089]
[1745490963353,0.1413752,92517.0,92516.0,0.39848089]
[1745490963660,0.1413752,92517.0,92516.0,0.42878089]
[1745490963869,0.1413752,92517.0,92516.0,0.53685729]
[1745490965758,0.1726752,92517.0,92516.0,0.53685729]
[1745490967647,0.1726752,92517.0,92516.0,0.50655729]
[1745490967849,0.1726752,92517.0,92516.0,0.36788089]
[1745490969464,0.1726752,92517.0,92516.0,0.47595729]
[1745490971066,0.1726752,92517.0,92516.0,0.36788089]
[1745490972967,0.1726752,92517.0,92516.0,0.00708089]
[1745490973167,0.1080939,92502.0,92501.0,0.1080936]
[1745490974255,0.1100939,92502.0,92501.0,0.1180936]
[1745490974855,0.1729939,92502.0,92501.0,0.1180936]
[1745490976872,0.18127197,92502.0,92501.0,0.1180936]
[1745490977066,0.18127197,92502.0,92501.0,0.005]
[1745490977268,0.1080939,92501.0,92500.0,0.27261656]
[1745490977469,0.1080939,92501.0,92500.0,0.24051656]
[1745490977669,0.1718939,92501.0,92500.0,0.20971656]
[1745490977872,0.1718939,92501.0,92500.0,0.20971666]
[1745490978373,0.1718939,92501.0,92500.0,0.10162156]
[1745490978575,0.1728939,92501.0,92500.0,0.10162156]
[1745490978870,0.1728939,92501.0,92500.0,0.20971666]
[1745490981471,0.1728939,92501.0,92500.0,0.10162156]
[1745490981685,0.1728939,92501.0,92500.0,0.20971666]
[1745490996881,0.1728939,92501.0,92500.0,0.27291666]
[1745490999487,0.1728939,92501.0,92500.0,0.2712951]
[1745491000782,0.1728939,92501.0,92500.0,0.2392951]
[1745491001993,0.28299614,92501.0,92500.0,0.2392951]
[1745491002286,0.28299614,92501.0,92500.0,0.2701951]
[1745491005490,0.28299614,92501.0,92500.0,0.2392951]
[1745491006684,0.1728939,92501.0,92500.0,0.2392951]
[1745491009396,0.1728939,92501.0,92500.0,0.2080951]
[1745491009593,0.21757605,92501.0,92500.0,0.2080951]
[1745491017586,0.1728939,92501.0,92500.0,0.2080951]
[1745491018684,0.1728939,92501.0,92500.0,0.1]
[1745491019887,0.1728939,92501.0,92500.0,0.2080951]
[1745491020289,0.1728939,92501.0,92500.0,0.1]
[1745491021191,0.1728939,92501.0,92500.0,0.2080951]
[1745491027208,0.21757606,92501.0,92500.0,0.2080951]
[1745491027593,0.21757606,92501.0,92500.0,0.1]
[1745491028000,0.0540515,92494.0,92476.0,0.0540611]
[1745491028301,0.1081103,92487.0,92466.0,0.3608]
[1745491028502,0.1081103,92487.0,92478.0,0.10974244]
[1745491028803,0.1715103,92487.0,92480.0,0.108118]
[1745491029104,0.18229834,92487.0,92478.0,0.00162194]
[1745491029308,0.1081196,92479.0,92478.0,0.00162194]
[1745491029508,0.4689196,92479.0,92478.0,0.00162194]
[1745491030206,0.5338196,92479.0,92478.0,0.00162194]
[1745491031039,0.1081348,92466.0,92465.0,0.27236322]
[1745491031405,0.1081348,92466.0,92465.0,0.28345469]
[1745491031598,0.1081348,92466.0,92465.0,0.27236322]
[1745491032408,0.1091348,92466.0,92465.0,0.27436322]
[1745491032611,0.1091348,92466.0,92465.0,0.1101356]
[1745491033902,0.1101348,92466.0,92465.0,0.1131356]
[1745491036218,0.4709348,92466.0,92465.0,0.1131356]
[1745491040417,0.4709348,92466.0,92465.0,0.1453356]
[1745491042512,0.4709348,92466.0,92465.0,0.1781356]
[1745491043420,0.1101348,92466.0,92465.0,0.1781356]
[1745491043622,0.4709348,92466.0,92465.0,0.1781356]
[1745491044028,0.3628,92466.0,92465.0,0.1781356]
[1745491044219,0.3628,92466.0,92465.0,0.3501356]
[1745491045019,0.4709348,92466.0,92465.0,0.3501356]
[1745491045219,0.4709348,92466.0,92465.0,0.1781356]
[1745491045416,0.3628,92466.0,92465.0,0.1781356]
[1745491047533,0.5011348,92466.0,92465.0,0.1781356]
[1745491048321,0.1403348,92466.0,92465.0,0.1781356]
[1745491048522,0.1403348,92466.0,92465.0,0.1131356]
[1745491048718,0.5011348,92466.0,92465.0,0.1131356]
[1745491049620,0.5011348,92466.0,92465.0,0.113136]
[1745491055329,0.393,92466.0,92465.0,0.113136]
[1745491055836,0.002,92466.0,92465.0,0.113136]
[1745491056232,0.002,92466.0,92465.0,0.285136]
[1745491056635,0.002,92466.0,92465.0,0.393284]
[1745491064737,0.002,92466.0,92465.0,0.457584]
[1745491069135,0.002,92466.0,92465.0,0.349436]
[1745491076052,0.0343,92466.0,92465.0,0.349436]
[1745491082042,0.002,92466.0,92465.0,0.349436]
[1745491082238,0.10997165,92479.0,92478.0,0.1081208]
[1745491082849,0.10997165,92479.0,92478.0,0.1399208]
[1745491083144,0.10997165,92479.0,92478.0,0.3119208]
[1745491084052,0.0313,92484.0,92483.0,0.108115]
[1745491085252,0.0343,92484.0,92483.0,0.281115]
[1745491085449,0.0363,92484.0,92483.0,0.282115]
[1745491086455,0.0343,92484.0,92483.0,0.281115]
[1745491086644,0.0353,92484.0,92483.0,0.281115]
[1745491087554,0.0323,92484.0,92483.0,0.280115]
[1745491087755,0.0353,92484.0,92483.0,0.281115]
[1745491089158,0.0353,92484.0,92483.0,0.109115]
[1745491092570,0.0353,92484.0,92483.0,0.141915]
[1745491092770,0.0353,92484.0,92483.0,0.206415]
[1745491093278,0.0353,92484.0,92483.0,0.378415]
[1745491095671,0.004,92484.0,92483.0,0.378415]
[1745491099668,0.00028,92491.0,92490.0,0.1081068]
[1745491099867,0.0540396,92514.0,92490.0,0.1081068]
[1745491099868,0.0318,92502.0,92490.0,0.0540528]
[1745491100073,0.0649,92502.0,92497.0,0.4688986]
[1745491100272,0.0318,92502.0,92497.0,0.4688986]
[1745491101179,0.11417248,92498.0,92497.0,0.4698986]
[1745491101681,0.11017248,92498.0,92497.0,0.4688986]
[1745491101981,0.11717248,92498.0,92497.0,0.4708986]
[1745491102170,0.11717248,92498.0,92497.0,0.6729986]
[1745491103277,0.07041308,92498.0,92497.0,0.6719986]
[1745491103492,0.0641,92515.0,92506.0,0.1080881]
[1745491104078,0.0641,92515.0,92508.0,0.1080857]
[1745491104079,0.11001227,92509.0,92508.0,0.1080857]
[1745491105177,0.11001227,92509.0,92508.0,0.2800857]
[1745491105375,0.11501227,92509.0,92508.0,0.2810857]
[1745491106884,0.12001227,92509.0,92508.0,0.2820857]
[1745491107772,0.0641,92515.0,92514.0,0.1080787]
[1745491109181,0.0308,92515.0,92514.0,0.1080787]
[1745491109986,0.0348,92515.0,92514.0,0.1090787]
[1745491110282,0.0388,92515.0,92514.0,0.1090787]
[1745491111082,0.0388,92515.0,92514.0,0.2810787]
[1745491115293,0.0388,92515.0,92514.0,0.3118787]
[1745491115879,0.0388,92515.0,92514.0,0.3447787]
[1745491117284,0.0388,92515.0,92514.0,0.3118787]
[1745491120384,0.05508,92515.0,92514.0,0.3118787]
[1745491120793,0.02428,92515.0,92514.0,0.3118787]
[1745491121088,0.02428,92515.0,92514.0,0.3430787]
[1745491121776,0.08508,92515.0,92514.0,0.3430787]
[1745491122988,0.08508,92515.0,92514.0,0.3118787]
[1745491125087,0.08508,92515.0,92514.0,0.3424787]
[1745491127582,0.08508,92515.0,92514.0,0.2810787]
[1745491129184,0.08508,92515.0,92514.0,0.1090787]
[1745491135287,0.08508,92515.0,92514.0,0.1398787]
[1745491135890,0.08508,92515.0,92514.0,0.1730787]
[1745491136088,0.49826457,92531.0,92530.0,0.10806]
[1745491136484,0.13746457,92531.0,92530.0,0.49966]
[1745491136687,0.13746457,92531.0,92530.0,0.13886]
[1745491136986,0.13746457,92531.0,92530.0,0.14952967]
[1745491137191,0.13746457,92531.0,92530.0,0.32152967]
[1745491137578,0.13946457,92531.0,92530.0,0.35292967]
[1745491138181,0.13946457,92531.0,92530.0,0.32152967]
[1745491138787,0.14646457,92531.0,92530.0,0.32252967]
[1745491139095,0.14446457,92531.0,92530.0,0.32252967]
[1745491139284,0.14546457,92531.0,92530.0,0.32252967]
[1745491139595,0.14446457,92531.0,92530.0,0.32252967]
[1745491139806,0.14446457,92531.0,92530.0,0.32452967]
[1745491139997,0.13746457,92531.0,92530.0,0.32552967]
[1745491140199,0.13746457,92531.0,92530.0,0.32352967]
[1745491140391,0.13746457,92531.0,92530.0,0.32552967]
[1745491140700,0.0316,92534.0,92533.0,0.1080565]
[1745491140990,0.0649,92534.0,92533.0,0.1080565]
[1745491142602,0.0649,92534.0,92533.0,0.1100565]
[1745491146001,0.0649,92534.0,92533.0,0.1724565]
[1745491146195,0.0649,92534.0,92533.0,0.3444565]
[1745491146588,0.0311,92539.0,92535.0,0.1080542]
[1745491146787,0.0638,92538.0,92535.0,0.1080542]
[1745491147200,0.0638,92538.0,92535.0,0.1386542]
[1745491148402,0.0638,92538.0,92535.0,0.1396542]
[1745491148599,0.0638,92538.0,92535.0,0.1090542]
[1745491149291,0.0638,92538.0,92535.0,0.2810542]
[1745491150104,0.0638,92538.0,92535.0,0.1090542]
[1745491151107,0.0638,92538.0,92535.0,0.2810542]
[1745491152899,0.0638,92538.0,92535.0,0.3137542]
[1745491155105,0.113253,92536.0,92535.0,0.173]
[1745491155332,0.113253,92536.0,92514.0,0.4148388]
[1745491155333,0.72406801,92536.0,92515.0,0.0540383]
[1745491155585,0.3608,92519.0,92518.0,0.1080741]
[1745491156627,0.3608,92519.0,92518.0,0.1120741]
[1745491156806,0.4253,92519.0,92518.0,0.1120741]
[1745491157195,0.5333729,92519.0,92518.0,0.1120741]
[1745491158009,0.5333729,92519.0,92518.0,0.1160741]
[1745491158310,0.5333729,92519.0,92518.0,0.1150741]
[1745491158816,0.5333729,92519.0,92518.0,0.1120741]
[1745491159000,0.5363729,92519.0,92518.0,0.1120741]
[1745491159195,0.5363729,92519.0,92518.0,0.1080741]
[1745491159404,0.5353729,92519.0,92518.0,0.1080741]
[1745491159602,0.5373729,92519.0,92518.0,0.1080741]
[1745491161012,0.5363729,92519.0,92518.0,0.1080741]
[1745491161211,0.5353729,92519.0,92518.0,0.1080741]
[1745491161513,0.5343729,92519.0,92518.0,0.1080741]
[1745491161812,0.5353729,92519.0,92518.0,0.1080741]
[1745491162199,0.4273,92519.0,92518.0,0.1080741]
[1745491162811,0.4263,92519.0,92518.0,0.1080741]
[1745491163211,0.4263,92519.0,92518.0,0.2800741]
[1745491164211,0.4253,92519.0,92518.0,0.1080741]
[1745491164806,0.4253,92519.0,92518.0,0.1406741]
[1745491165007,0.4253,92519.0,92518.0,0.1416741]
[1745491165714,0.4253,92519.0,92518.0,0.1406741]
[1745491165925,0.4253,92519.0,92518.0,0.1436741]
[1745491167120,0.4253,92519.0,92518.0,0.3156741]
[1745491167715,0.3608,92519.0,92518.0,0.3156741]
[1745491167916,0.0312,92527.0,92526.0,0.1080647]
[1745491168127,0.0643,92527.0,92526.0,0.1080647]
[1745491168309,0.0052,92536.0,92535.0,0.1080542]
[1745491169011,0.0364,92536.0,92535.0,0.1080542]
[1745491169211,0.0364,92536.0,92535.0,0.2800542]
[1745491169611,0.0695,92536.0,92535.0,0.2800542]
[1745491170330,0.0052,92536.0,92535.0,0.2800542]
[1745491171327,0.0082,92536.0,92535.0,0.2800542]
[1745491171934,0.0062,92536.0,92535.0,0.2800542]
[1745491172126,0.0052,92536.0,92535.0,0.2810542]
[1745491175737,0.0052,92536.0,92535.0,0.6418542]
[1745491175929,1e-08,92536.0,92535.0,0.6418542]
[1745491182843,1e-08,92536.0,92535.0,0.6740542]
[1745491183342,1e-08,92536.0,92535.0,0.7821222]
[1745491183538,0.0011,92547.0,92546.0,0.1080414]
[1745491183848,0.0662,92559.0,92558.0,0.1080273]
[1745491184146,0.0662,92559.0,92558.0,0.11895356]
[1745491184545,0.13740708,92560.0,92559.0,0.1080262]
[1745491185158,0.1648885,92568.0,92561.0,0.0540114]
[1745491185445,1e-08,92568.0,92567.0,0.4688168]
[1745491186142,1e-08,92568.0,92567.0,0.6408168]
[1745491187140,0.0011,92577.0,92572.0,0.0540049]
[1745491187435,0.0651,92582.0,92578.0,0.0540018]
[1745491187674,0.0651,92582.0,92581.0,0.1080005]
[1745491188156,0.0651,92582.0,92581.0,0.2800005]
[1745491189743,0.0691,92582.0,92581.0,0.2800005]
[1745491190147,0.0691,92582.0,92581.0,0.1080005]
[1745491190650,0.5378993,92582.0,92581.0,0.1080005]
[1745491190959,0.4299,92582.0,92581.0,0.1080005]
[1745491199644,0.0691,92582.0,92581.0,0.1080005]
[1745491200254,0.0691,92582.0,92581.0,0.2800005]
[1745491204353,0.0633,92592.0,92591.0,0.1079888]
[1745491204758,0.3608,92594.0,92593.0,0.1079865]
[1745491205663,0.4241,92594.0,92593.0,0.11855953]
[1745491206162,0.4241,92594.0,92593.0,0.29055953]
[1745491206361,0.4241,92594.0,92593.0,0.32225953]
[1745491207267,0.4241,92594.0,92593.0,0.1079865]
[1745491207867,0.4281,92594.0,92593.0,0.1079865]
[1745491208161,0.1079986,92585.0,92584.0,0.1079959]
[1745491208366,0.3608,92585.0,92584.0,0.1079959]